{"text_format":"1","workbook":"xlsx","n_sheets":5,"sheets":["NOMBRE","D15","D16","Control","MACROS"],"not_rendered":{"charts":0,"images":0,"macros":1,"external_links":0,"defined_names":0,"comments":0,"pivot_tables":0},"unopened":[],"bounds":{"document_bytes":16777216,"sheet_cells":100000,"rows_first":2000,"rows_last":500,"rows_between":2000,"halvings":0,"cell_chars":16384,"cell_head_chars":4096},"cells_cut":0,"cells_raw":0,"read":"whole","date_system":"1900"}

{"sheet":"NOMBRE","index":0,"n_rows":37,"n_cols":33,"rows_kept":37,"cut":false,"hidden":false,"merged":[[16,1,18,1],[0,0,0,1],[0,2,0,6],[8,0,8,1],[14,0,14,1]]}
["DATOS DEL ESTABLECIMIENTO",null,"CÓDIGOS"]
["NOMBRE DE COMUNA","CALLE LARGA",0,5,3,0,2,null,{"$f":"IF(OR(NOMBRE!C2=\"\",NOMBRE!E2=\"\",NOMBRE!D2=\"\",NOMBRE!E2=\"\",NOMBRE!F2=\"\",NOMBRE!G2=\"\"),\"Falta Cód. Com.\",\"\")","v":""},null,null,null,null,null,null,null,null,null,null,null,null,null,null,null,null,null,null,null,null,null,null,null,{"$f":"IF(I2>\"\",1,0)","v":0}]
["NOMBRE ESTABLECIMIENTO/ESTRATEGIA","SAN VICENTE",1,0,8,4,0,5,{"$f":"IF(OR(NOMBRE!C3=\"\",NOMBRE!D3=\"\",NOMBRE!E3=\"\",NOMBRE!F3=\"\",NOMBRE!G3=\"\",NOMBRE!H3=\"\"),\"Falta Cód. Estab.\",\"\")","v":""},null,null,null,null,null,null,null,null,null,null,null,null,null,null,null,null,null,null,null,null,null,null,null,{"$f":"IF(I3>\"\",1,0)","v":0}]
["TIPO DE ESTABLECIMIENTO/ESTRATEGIA","Posta de Salud Rural (PSR)",null,null,null,null,null,null,{"$f":"IF(OR(NOMBRE!B4=\"\"),\"Falta TIPO Estab.\",\"\")","v":""},null,null,null,null,null,null,null,null,null,null,null,null,null,null,null,null,null,null,null,null,null,null,null,{"$f":"IF(I4>\"\",1,0)","v":0}]
["DEPENDENCIA","MUNICIPAL",null,null,null,null,null,null,{"$f":"IF(OR(NOMBRE!B5=\"\"),\"Falta DEPENDENCIA Estab.\",\"\")","v":""},null,null,null,null,null,null,null,null,null,null,null,null,null,null,null,null,null,null,null,null,null,null,null,{"$f":"IF(I5>\"\",1,0)","v":0}]
["MES:","ENERO",0,1,null,null,null,null,{"$f":"IF(OR(NOMBRE!C6=\"\",NOMBRE!D6=\"\"),\"Falta el Mes\",\"\")","v":""},null,null,null,null,null,null,null,null,null,null,null,null,null,null,null,null,null,null,null,null,null,null,null,{"$f":"IF(I6>\"\",1,0)","v":0}]
["AÑO:",2022,null,null,null,null,null,null,null,null,null,null,null,null,null,null,null,null,null,null,null,null,null,null,null,null,null,null,null,null,null,null,{"$f":"SUM(AG2:AG6)","v":0}]
[]
["Versión 1.1: FEBRERO 2022"]
[]
["Director Servicio de Salud o Director Establecimiento","A.S. Patricia Natalia Rios Rojas",null,null,null,null,null,null,null,null,null,null,null,null,null,null,null,null,null,null,null,null,null,null,null,null,"ENERO","Establecimiento de Mayor Complejidad (EMAYC)","SERVICIO DE SALUD"]
["Jefe de Estadisticas","Carmen G. Ibaceta Cesped",null,null,null,null,null,null,null,null,null,null,null,null,null,null,null,null,null,null,null,null,null,null,null,null,"FEBRERO","Establecimiento de Mediana Complejidad (EMEDC)","MUNICIPAL"]
[null,null,null,null,null,null,null,null,null,null,null,null,null,null,null,null,null,null,null,null,null,null,null,null,null,null,"MARZO","Establecimiento de Menor Complejidad (EMENC)","OTRA INSTITUCIÓN (Delegado)"]
[null,null,null,null,null,null,null,null,null,null,null,null,null,null,null,null,null,null,null,null,null,null,null,null,null,null,"ABRIL","Centros de Diagnóstico Terapéutico (CDT)"]
["MINSAL - DEIS",null,null,null,null,null,null,null,null,null,null,null,null,null,null,null,null,null,null,null,null,null,null,null,null,null,"MAYO","Centro de Referencia de Salud (CRS)"]
[null,null,null,null,null,null,null,null,null,null,null,null,null,null,null,null,null,null,null,null,null,null,null,null,null,null,"JUNIO","Consultorio General Urbano (CGU)"]
[null,"SERIE D",null,null,null,null,null,null,null,null,null,null,null,null,null,null,null,null,null,null,null,null,null,null,null,null,"JULIO","Consultorio General Urbano (CGU) - CESFAM"]
[null,null,null,null,null,null,null,null,null,null,null,null,null,null,null,null,null,null,null,null,null,null,null,null,null,null,"AGOSTO","Consultorio General Urbano(CGU) con SAPU/SAR/SUR"]
[null,null,null,null,null,null,null,null,null,null,null,null,null,null,null,null,null,null,null,null,null,null,null,null,null,null,"SEPTIEMBRE","Consultorio General Urbano (CGU) - CESFAM con SAPU/SAR/SUR"]
[null,null,null,null,null,null,null,null,null,null,null,null,null,null,null,null,null,null,null,null,null,null,null,null,null,null,"OCTUBRE","Consultorio General Rural (CGR)"]
[null,null,null,null,null,null,null,null,null,null,null,null,null,null,null,null,null,null,null,null,null,null,null,null,null,null,"NOVIEMBRE","Consultorio General Rural (CGR) - CESFAM"]
[null,null,null,null,null,null,null,null,null,null,null,null,null,null,null,null,null,null,null,null,null,null,null,null,null,null,"DICIEMBRE","Consultorio General Rural (CGR) con SAPU/SAR/SUR"]
[null,null,null,null,null,null,null,null,null,null,null,null,null,null,null,null,null,null,null,null,null,null,null,null,null,null,null,"Consultorio General Rural (CGR) - CESFAM con SAPU/SAR/SUR"]
[null,null,null,null,null,null,null,null,null,null,null,null,null,null,null,null,null,null,null,null,null,null,null,null,null,null,null,"Posta de Salud Rural (PSR)"]
[null,null,null,null,null,null,null,null,null,null,null,null,null,null,null,null,null,null,null,null,null,null,null,null,null,null,null,"Centro Comunitario de Salud Familiar (CECOF)"]
[null,null,null,null,null,null,null,null,null,null,null,null,null,null,null,null,null,null,null,null,null,null,null,null,null,null,null,"Consultorio de Salud Mental (COSAM)"]
[null,null,null,null,null,null,null,null,null,null,null,null,null,null,null,null,null,null,null,null,null,null,null,null,null,null,null,"Programa de Reparación y Atención Integral de Salud (PRAIS)"]
[null,null,null,null,null,null,null,null,null,null,null,null,null,null,null,null,null,null,null,null,null,null,null,null,null,null,null,"Centro de Atención Funcionarios (CAF)"]
[null,null,null,null,null,null,null,null,null,null,null,null,null,null,null,null,null,null,null,null,null,null,null,null,null,null,null,"Clínica Dental Móvil (CDM)"]
[null,null,null,null,null,null,null,null,null,null,null,null,null,null,null,null,null,null,null,null,null,null,null,null,null,null,null,"Dirección Servicio de Salud (DSS)"]
[null,null,null,null,null,null,null,null,null,null,null,null,null,null,null,null,null,null,null,null,null,null,null,null,null,null,null,"Servicio de Atención Primaria de Urgencia (SAPU)"]
[null,null,null,null,null,null,null,null,null,null,null,null,null,null,null,null,null,null,null,null,null,null,null,null,null,null,null,"Servicio de Atención Primaria de Urgencia de Alta Resolución (SAR)"]
[null,null,null,null,null,null,null,null,null,null,null,null,null,null,null,null,null,null,null,null,null,null,null,null,null,null,null,"Servicio de urgencia Rural (SUR)"]
[null,null,null,null,null,null,null,null,null,null,null,null,null,null,null,null,null,null,null,null,null,null,null,null,null,null,null,"Laboratorio Clínico o Dental"]
[null,null,null,null,null,null,null,null,null,null,null,null,null,null,null,null,null,null,null,null,null,null,null,null,null,null,null,"Servicio de Atención Primaria de Urgencia Dental (SAPUDENT)"]
[null,null,null,null,null,null,null,null,null,null,null,null,null,null,null,null,null,null,null,null,null,null,null,null,null,null,null,"Centro de Rehabilitación (CR)"]
[null,null,null,null,null,null,null,null,null,null,null,null,null,null,null,null,null,null,null,null,null,null,null,null,null,null,null,"Hospital de Campaña"]

{"sheet":"D15","index":1,"n_rows":149,"n_cols":35,"rows_kept":149,"cut":false,"hidden":false,"merged":[[33,3,36,3],[33,4,36,4],[33,5,33,11],[70,3,73,3],[70,4,73,4],[70,5,70,11],[46,12,48,12],[46,13,48,13],[45,10,45,11],[46,4,48,4],[46,9,48,9],[45,3,45,9],[83,13,85,13],[83,14,83,15],[83,3,83,4],[95,0,95,1],[86,0,86,1],[87,0,87,1],[88,0,88,1],[90,0,90,1],[91,0,91,1],[83,6,83,12],[84,15,85,15],[84,14,85,14],[92,0,92,1],[84,4,85,4],[84,11,85,11],[84,12,85,12],[84,9,85,9],[84,10,85,10],[93,0,93,1],[94,0,94,1],[79,0,79,1],[34,16,36,16],[34,6,36,6],[34,15,36,15],[41,0,41,1],[34,14,36,14],[34,11,36,11],[34,12,36,12],[34,9,36,9],[34,10,36,10],[37,0,37,1],[34,13,36,13],[34,8,36,8],[34,7,36,7],[45,12,45,14],[46,3,48,3],[71,15,73,15],[70,14,70,16],[70,12,70,13],[78,0,78,1],[76,0,76,1],[46,10,48,10],[46,11,48,11],[46,14,48,14],[9,7,11,7],[9,8,11,8],[33,12,33,13],[42,0,42,1],[83,0,85,1],[83,2,85,2],[84,3,85,3],[39,0,39,1],[84,6,84,8],[83,5,85,5],[33,2,36,2],[23,0,25,0],[49,0,53,0],[45,0,48,0],[45,1,48,1],[45,2,48,2],[46,8,48,8],[46,5,48,5],[46,6,48,6],[46,7,48,7],[71,5,73,5],[71,6,73,6],[71,7,73,7],[28,0,30,0],[5,0,5,10],[6,0,6,16],[8,0,11,0],[8,1,11,1],[8,2,11,2],[8,3,8,9],[33,14,33,16],[9,11,11,11],[8,10,8,11],[8,12,8,14],[9,14,11,14],[31,0,31,1],[12,0,16,0],[17,0,22,0],[9,5,11,5],[33,0,36,1],[9,6,11,6],[9,3,11,3],[9,4,11,4],[34,5,36,5],[9,10,11,10],[9,13,11,13],[9,12,11,12],[9,9,11,9],[77,0,77,1],[71,8,73,8],[71,9,73,9],[49,15,49,21],[51,15,51,21],[54,15,54,21],[55,15,55,21],[56,15,56,21],[57,15,57,21],[70,0,73,1],[70,2,73,2],[71,10,73,10],[71,11,73,11],[65,0,67,0],[74,0,74,1],[54,0,59,0],[60,0,64,0],[68,0,68,1],[71,14,73,14],[71,12,73,12],[71,13,73,13],[71,16,73,16]]}
["SERVICIO DE SALUD"]
[{"$f":"CONCATENATE(\"COMUNA: \",NOMBRE!$B$2,\" - \",\"( \",NOMBRE!$C$2,NOMBRE!$D$2,NOMBRE!$E$2,NOMBRE!$F$2,NOMBRE!$G$2,\" )\")","v":"COMUNA: CALLE LARGA - ( 05302 )"}]
[{"$f":"CONCATENATE(\"ESTABLECIMIENTO/ESTRATEGIA: \",NOMBRE!$B$3,\" - \",\"( \",NOMBRE!$C$3,NOMBRE!$D$3,NOMBRE!$E$3,NOMBRE!$F$3,NOMBRE!$G$3,NOMBRE!$H$3,\" )\")","v":"ESTABLECIMIENTO/ESTRATEGIA: SAN VICENTE - ( 108405 )"}]
[{"$f":"CONCATENATE(\"MES: \",NOMBRE!$B$6,\" - \",\"( \",NOMBRE!$C$6,NOMBRE!$D$6,\" )\")","v":"MES: ENERO - ( 01 )"}]
[{"$f":"CONCATENATE(\"AÑO: \",NOMBRE!$B$7)","v":"AÑO: 2022"}]
[]
["REM-D.15 - Programa Nacional de Alimentación Complementaria (PNAC)"]
["Sección A: PNAC - Cantidad distribuida (kg) a personas intrasistema"]
["Subprogramas","Productos","Total","Menores a 6 años",null,null,null,null,null,null,"Gestantes",null,"Mujer con hijo/a menor a 12 meses"]
[null,null,null,"0 - 2 meses","3 - 5 meses","6 - 11 meses","12 - 17 meses"," 18 - 23 meses"," 24 - 47 meses"," 48 - 71 meses","Normal, sobrepeso y obesas","Bajo peso","0-5 meses con Lactancia Materna exclusiva","0-5 meses Lactancia \nmaterna \npredominante, formula predominante o formula exclusiva","6 a 11 meses Lactancia Materna"]
[]
[]
["Básico","Leche Purita Fortificada (LPF)",{"$f":"SUM(F13:O13)","v":6},null,null,4,2,null,null,null,null,null,null,null,null,{"$f":"AA13&\" \"&AB13","v":" "}]
[null,"Purita Cereal (PC)",{"$f":"SUM(H14:J14)","v":26},null,null,null,null,2,16,8]
[null,"Purita Mamá (PM)",{"$f":"SUM(M15:O15)+K15","v":7},null,null,null,null,null,null,null,3,null,4,null,null,{"$f":"AA15&\" \"&AB15&\" \"&AC15&\" \"&AD15","v":"   "},null,null,null,null,null,null,null,null,null,null,{"$f":"IF(K13+K15=M38,\"\",\" No olvide escribir el Nº Correcto según kg por persona que retira alimento de la sección B en el grupo de Gestantes Normal, Sobrepeso y Obesas\")","v":""},{"$f":"IF(M13+M15=(O38*2),\"\",\"No olvide escribir el Nº Correcto según kg por persona que retira alimento de la sección B en el grupo de Madre con hijo/a menor a 6 meses con Lactancia materna exclusiva\")","v":""},{"$f":"IF(N13+N15=P38,\"\",\"No olvide escribir el Nº Correcto según kg por persona que retira alimento de la sección B en el grupo de Madre con hijo/a menor a 6 meses con Lactancia materna predominante\")","v":""},{"$f":"IF(O13+O15=Q38,\"\",\"No olvide escribir el Nº Correcto según kg por persona que retira alimento de la sección B en el grupo de Madre con hijo/a menor a 6 meses con Formula predominantes o exclusiva\")","v":""},null,{"$f":"IF(K15=M38,0,1)","v":0},{"$f":"IF(M15=(O38*2),0,1)","v":0},{"$f":"IF(N15=P38,0,1)","v":0},{"$f":"IF(O15=Q38,0,1)","v":0}]
[null,"Fórmula de Inicio (FI)",{"$f":"SUM(D16:F16)","v":0}]
[null,"Subtotal",{"$f":"SUM(D17:O17)","v":39},{"$f":"SUM(D16)","v":0},{"$f":"SUM(E16)","v":0},{"$f":"SUM(F13:F16)","v":4},{"$f":"SUM(G13)","v":2},{"$f":"SUM(H13:H14)","v":2},{"$f":"SUM(I13:I14)","v":16},{"$f":"SUM(J13:J14)","v":8},{"$f":"SUM(K13:K16)","v":3},{"$f":"SUM(L13)","v":0},{"$f":"SUM(M13:M16)","v":4},{"$f":"SUM(N13:N16)","v":0},{"$f":"SUM(O13:O16)","v":0}]
["Refuerzo","Leche Purita Fortificada (LPF)",{"$f":"SUM(F18:O18)","v":0},null,null,null,null,null,null,null,null,null,null,null,null,{"$f":"AA18&\" \"&AB18","v":" "},null,null,null,null,null,null,null,null,null,null,{"$f":"IF(K18 = K23, \"\",\"el valor de la Leche Purita Fortificada (LPF) deben ser igual al subotal Normal, sobrepeso y obesas del gestante\")","v":""}]
[null,"Purita Cereal (PC)",{"$f":"SUM(H19:J19)","v":0}]
[null,"Mi Sopita (MS)",{"$f":"SUM(E20:J20)","v":0},null,null,null,null,null,null,null,null,null,null,null,null,{"$f":"AA20&\" \"&AB20&\" \"&AC20&\" \"&AD20&\" \"&AA21&\" \"&AB21","v":"     "}]
[null,"Purita Mamá (PM)",{"$f":"SUM(L21:O21)","v":0}]
[null,"Fórmula de Inicio (FI)",{"$f":"SUM(D22:F22)","v":0}]
[null,"Subtotal",{"$f":"SUM(D23:O23)","v":0},{"$f":"SUM(D22)","v":0},{"$f":"SUM(E18:E22)","v":0},{"$f":"SUM(F18:F22)","v":0},{"$f":"SUM(G18:G20)","v":0},{"$f":"SUM(H18:H20)","v":0},{"$f":"SUM(I18:I20)","v":0},{"$f":"SUM(J18:J20)","v":0},{"$f":"SUM(K18)","v":0},{"$f":"SUM(L18:L22)","v":0},{"$f":"SUM(M18:M22)","v":0},{"$f":"SUM(N18:N22)","v":0},{"$f":"SUM(O18:O22)","v":0}]
["Prematuros ","Fórmula de Prematuros (FP)",{"$f":"SUM(D24:F24)","v":0}]
[null,"Fórmula de Continuación (FC)",{"$f":"F25","v":0}]
[null,"Mi Sopita (MS)",{"$f":"SUM(E26:F26)","v":0}]
[null,"Fórmula de Inicio (FI)",{"$f":"SUM(D27:F27)","v":2.4},null,null,2.4]
[null,"Subtotal",{"$f":"SUM(D28:O28)","v":2.4},{"$f":"SUM(D24:D27)","v":0},{"$f":"SUM(E24,E26:E27)","v":0},{"$f":"SUM(F24,F25,F26:F27)","v":2.4},0,0,0,0,0,0,0,0,0]
["Alergia a la proteína de la leche de vaca","Fórmula Extensamente Hidrolizada (FEH)",{"$f":"SUM(D29:J29)","v":0}]
[null,"Fórmula Aminoacídica (FAA)",{"$f":"SUM(D30:J30)","v":0}]
[null,"Subtotal",{"$f":"SUM(D31:O31)","v":0},{"$f":"SUM(D29:D30)","v":0},{"$f":"SUM(E29:E30)","v":0},0,0,0,{"$f":"SUM(I29:I30)","v":0},{"$f":"SUM(J29:J30)","v":0},0,0,0,0,0]
["Total",null,{"$f":"SUM(D32:O32)","v":41.4},{"$f":"+D17+D23+D31+D28","v":0},{"$f":"+E17+E23+E31+E28","v":0},6.4,2,2,16,8,3,0,4,0,0]
["Sección B: PNAC - Número de personas intrasistema que retiran"]
["Subprogramas",null,"Total","Total Hombre","Total Mujer","Menores a 6 años",null,null,null,null,null,null,"Gestantes",null,"Mujer con hijo/a menor a 12 meses"]
[null,null,null,null,null,"0 - 2 meses","3 - 5 meses","6 - 11 meses","12 - 17 meses"," 18 - 23 meses"," 24 - 47 meses"," 48 - 71 meses","Normal, sobrepeso y obesas","Bajo peso","0-5 meses con Lactancia Materna exclusiva","0-5 meses Lactancia \nmaterna \npredominante, formula predominante o formula exclusiva","6 a 11 meses Lactancia Materna"]
[]
[]
["Básico",null,{"$f":"SUM(F38:M38)+SUM(O38:Q38)","v":21},7,14,null,null,2,1,1,8,4,3,null,2,null,null,{"$f":"AA38","v":""},null,null,null,null,null,null,null,null,{"$f":"IF(AF38=1,\"* La suma de los valores Total Hombres y Total Mujeres debe ser igual al Total.\",\"\")","v":""},null,null,null,null,{"$f":"IF(D38+E38=C38,0,1)","v":0}]
["Refuerzo",null,{"$f":"SUM(F39:L39)+SUM(N39:Q39)","v":0},null,null,null,null,null,null,null,null,null,null,null,null,null,null,{"$f":"AA39","v":""},null,null,null,null,null,null,null,null,{"$f":"IF(AF39=1,\"* La suma de los valores Total Hombres y Total Mujeres debe ser igual al Total.\",\"\")","v":""},null,null,null,null,{"$f":"IF(D39+E39=C39,0,1)","v":0}]
["Prematuros ",null,{"$f":"SUM(F40:H40)","v":0},null,null,null,null,null,null,null,null,null,null,null,null,null,null,"",null,null,null,null,null,null,null,null,"",null,null,null,null,{"$f":"IF(D40+E40=C40,0,1)","v":0}]
["Alergia a la Proteína de la leche de vaca",null,{"$f":"SUM(F41:L41)","v":0},null,null,null,null,null,null,null,null,null,null,null,null,null,null,"",null,null,null,null,null,null,null,null,"",null,null,null,null,{"$f":"IF(D41+E41=C41,0,1)","v":0}]
["TOTAL",null,{"$f":"SUM(F42:Q42)","v":21},{"$f":"SUM(D38:D41)","v":7},14,0,0,2,1,1,8,4,{"$f":"M38","v":3},{"$f":"N39","v":0},{"$f":"SUM(O38:O39)","v":2},{"$f":"SUM(P38:P39)","v":0},{"$f":"SUM(Q38:Q39)","v":0}]
["Programas Sociales (*)",null,{"$f":"SUM(F43:Q43)","v":0},null,null,null,null,null,null,null,null,null,null,null,null,null,null,"",null,null,null,null,null,null,null,null,"",null,null,null,null,{"$f":"IF(D43+E43=C43,0,1)","v":0}]
["Nota: (*) Información referencial, ya incluida en los subprogramas."]
["Sección C: PNAC: Cantidad distribuida (kg) a personas extrasistema (incluye modalidad libre elección)"]
["Subprogramas","Productos","Total","Menores a 6 años",null,null,null,null,null,null,"Gestantes",null,"Mujer con hijo/a menor a 12 meses"]
[null,null,null,"0 - 2 meses","3 - 5 meses","6 - 11 meses","12 - 17 meses"," 18 - 23 meses"," 24 - 47 meses"," 48 - 71 meses","Normal, sobrepeso y obesas","Bajo peso","0-5 meses con Lactancia Materna exclusiva","0-5 meses Lactancia \nmaterna \npredominante, formula predominante o formula exclusiva","6 a 11 meses Lactancia Materna"]
[]
[]
["Básico","Leche Purita Fortificada (LPF)",{"$f":"SUM(F50:O50)","v":0},null,null,null,null,null,null,null,null,null,null,null,null,{"$f":"AA50&\" \"&AB50","v":" "}]
[null,"Purita Cereal (PC)",{"$f":"SUM(H51:J51)","v":0}]
[null,"Purita Mamá (PM)",{"$f":"SUM(M52:O52)+K52","v":0},null,null,null,null,null,null,null,null,null,null,null,null,{"$f":"AA52&\" \"&AB52&\" \"&AC52&\" \"&AD52","v":"   "},null,null,null,null,null,null,null,null,null,null,{"$f":"IF(K50+K52=M75,\"\",\" No olvide escribir el Nº Correcto según kg por persona que retira alimento de la sección D en el grupo de Gestantes Normal, Sobrepeso y Obesas.\")","v":""},{"$f":"IF(M50+M52=O75*2,\"\",\"No olvide escribir el Nº Correcto según kg por persona que retira alimento de la sección D en el grupo de Madre con hijo/a menor a 6 meses con Lactancia materna exclusiva\")","v":""},{"$f":"IF(N50+N52=P75,\"\",\"No olvide escribir el Nº Correcto según kg por persona que retira alimento de la sección D en el grupo de Madre con hijo/a menor a 6 meses con Lactancia materna predominante\")","v":""},{"$f":"IF(O50+O52=Q75,\"\",\"No olvide escribir el Nº Correcto según kg por persona que retira alimento de la sección D en el grupo de Madre con hijo/a menor a 6 meses con Fórmula predominantes o exclusiva\")","v":""},null,{"$f":"IF(K52=M75,0,1)","v":0},{"$f":"IF(M52=(O75*2),0,1)","v":0},{"$f":"IF(N52=P75,0,1)","v":0},{"$f":"IF(O52=Q75,0,1)","v":0}]
[null,"Fórmula de Inicio (FI)",{"$f":"SUM(D53:F53)","v":0}]
[null,"Subtotal",{"$f":"SUM(D54:O54)","v":0},{"$f":"SUM(D53)","v":0},{"$f":"SUM(E53)","v":0},{"$f":"SUM(F50:F53)","v":0},{"$f":"SUM(G50)","v":0},{"$f":"SUM(H50:H51)","v":0},{"$f":"SUM(I50:I51)","v":0},{"$f":"SUM(J50:J51)","v":0},{"$f":"SUM(K50:K53)","v":0},{"$f":"SUM(L50)","v":0},{"$f":"SUM(M50:M53)","v":0},{"$f":"SUM(N50:N53)","v":0},{"$f":"SUM(O50:O53)","v":0}]
["Refuerzo","Leche Purita Fortificada (LPF)",{"$f":"SUM(F55:O55)","v":0},null,null,null,null,null,null,null,null,null,null,null,null,{"$f":"AA55&\" \"&AB55","v":" "}]
[null,"Purita Cereal (PC)",{"$f":"SUM(H56:J56)","v":0},null,null,null,null,null,null,null,null,null,null,null,null,{"$f":"AA56&\" \"&AB56&\" \"&AC56&\" \"&AD56","v":"   "}]
[null,"Mi Sopita (MS)",{"$f":"SUM(E57:J57)","v":0},null,null,null,null,null,null,null,null,null,null,null,null,{"$f":"AA57&\" \"&AB57&\" \"&AC57&\" \"&AD57&\" \"&AA58&\" \"&AB58","v":"     "},null,null,null,null,null,null,null,null,null,null,null,null,null,null,null,{"$f":"IF(K57=M80,0,1)","v":0},{"$f":"IF(M57=(O80*2),0,1)","v":0},{"$f":"IF(N57=P80,0,1)","v":0},{"$f":"IF(O57=Q80,0,1)","v":0}]
[null,"Purita Mamá (PM)",{"$f":"SUM(L58:O58)","v":0},null,null,null,null,null,null,null,null,null,null,null,null,{"$f":"AC58&\" \"&AD58","v":" "}]
[null,"Fórmula de Inicio (FI)",{"$f":"SUM(D59:F59)","v":0}]
[null,"Subtotal",{"$f":"SUM(D60:O60)","v":0},{"$f":"SUM(D59)","v":0},{"$f":"SUM(E55:E59)","v":0},{"$f":"SUM(F55:F59)","v":0},{"$f":"SUM(G55:G57)","v":0},{"$f":"SUM(H55:H57)","v":0},{"$f":"SUM(I55:I57)","v":0},{"$f":"SUM(J55:J57)","v":0},{"$f":"SUM(K55)","v":0},{"$f":"SUM(L55:L59)","v":0},{"$f":"SUM(M55:M59)","v":0},{"$f":"SUM(N55:N59)","v":0},{"$f":"SUM(O55:O59)","v":0}]
["Prematuros ","Fórmula de Prematuros (FP)",{"$f":"SUM(D61:F61)","v":0}]
[null,"Fórmula de Continuación (FC)",{"$f":"F62","v":0}]
[null,"Mi Sopita (MS)",{"$f":"SUM(E63:F63)","v":0}]
[null,"Fórmula de Inicio (FI)",{"$f":"SUM(D64:F64)","v":0}]
[null,"Subtotal",{"$f":"SUM(D65:O65)","v":0},{"$f":"SUM(D61:D64)","v":0},{"$f":"SUM(E61:E64)","v":0},{"$f":"SUM(F61:F64)","v":0},0,0,0,0,0,0,0,0,0]
["Alergia a la proteína de la leche de vaca ","Fórmula Extensamente Hidrolizada (FEH)",{"$f":"SUM(D66:J66)","v":0}]
[null,"Fórmula Aminoacídica (FAA)",{"$f":"SUM(D67:J67)","v":0}]
[null,"Subtotal",{"$f":"SUM(D68:O68)","v":0},{"$f":"SUM(D66:D67)","v":0},0,0,0,0,0,0,{"$f":"SUM(K66:K67)","v":0},0,0,0,0]
["Total",null,{"$f":"SUM(D69:O69)","v":0},{"$f":"+D54+D60+D65+D68","v":0},0,0,0,0,0,0,0,0,0,0,0]
["Sección D: PNAC - Número de personas extrasistema que retiran"]
["Subprogramas",null,"Total","Total Hombre","Total Mujer","Menores a 6 años",null,null,null,null,null,null,"Gestantes",null,"Mujer con hijo/a menor a 12 meses"]
[null,null,null,null,null,"0 - 2 meses","3 - 5 meses","6 - 11 meses","12 - 17 meses"," 18 - 23 meses"," 24 - 47 meses"," 48 - 71 meses","Normal, sobrepeso y obesas","Bajo peso","0-5 meses con Lactancia Materna exclusiva","0-5 meses Lactancia \nmaterna \npredominante, formula predominante o formula exclusiva","6 a 11 meses Lactancia Materna"]
[]
[]
["Básico",null,{"$f":"SUM(F75:M75)+SUM(O75:Q75)","v":0},null,null,null,null,null,null,null,null,null,null,null,null,null,null,{"$f":"AA75","v":""},null,null,null,null,null,null,null,null,{"$f":"IF(AF75=1,\"* La suma de los valores Total Hombres y Total Mujeres debe ser igual al Total.\",\"\")","v":""},null,null,null,null,{"$f":"IF(D75+E75=C75,0,1)","v":0}]
["Refuerzo",null,{"$f":"SUM(F76:L76)+SUM(N76:Q76)","v":0},null,null,null,null,null,null,null,null,null,null,null,null,null,null,{"$f":"AA76","v":""},null,null,null,null,null,null,null,null,{"$f":"IF(AF76=1,\"* La suma de los valores Total Hombres y Total Mujeres debe ser igual al Total.\",\"\")","v":""},null,null,null,null,{"$f":"IF(D76+E76=C76,0,1)","v":0}]
["Prematuros ",null,{"$f":"SUM(F77:H77)","v":0},null,null,null,null,null,null,null,null,null,null,null,null,null,null,"",null,null,null,null,null,null,null,null,"",null,null,null,null,{"$f":"IF(D77+E77=C77,0,1)","v":0}]
["Alergia a la Proteína de la leche de vaca ",null,{"$f":"SUM(F78:L78)","v":0},null,null,null,null,null,null,null,null,null,null,null,null,null,null,"",null,null,null,null,null,null,null,null,"",null,null,null,null,{"$f":"IF(D78+E78=C78,0,1)","v":0}]
["Total",null,{"$f":"SUM(F79:Q79)","v":0},{"$f":"SUM(D75:D78)","v":0},0,0,0,0,0,0,0,0,{"$f":"SUM(M75)","v":0},{"$f":"SUM(N76)","v":0},{"$f":"SUM(O75:O76)","v":0},{"$f":"SUM(P75:P76)","v":0},{"$f":"SUM(Q75:Q76)","v":0}]
["Programas Sociales (*)",null,{"$f":"SUM(F80:Q80)","v":0},null,null,null,null,null,null,null,null,null,null,null,null,null,null,"",null,null,null,null,null,null,null,null,"",null,null,null,null,{"$f":"IF(D80+E80=C80,0,1)","v":0}]
["Nota: (*) Información referencial, ya incluida en los subprogramas."]
[]
["Sección E: Existencia y movimiento total de productos (Intrasistema y Extrasistema)"]
["Productos",null,"Saldo Mes Anterior","Ingresos",null,"Total Disponible","Egresos",null,null,null,null,null,null,"Saldo mes siguiente","Necesidades"]
[null,null,null,"Planta","Por traspaso",null,"Distribuido",null,null,"Mermas (Incluye faltantes)","Otros: \ndemostra-\nciones, dona-\nciones, etc","Traspaso","Total Egresos",null,"Bodega del \nestablecimiento","Bodegas centrales"]
[null,null,null,null,null,null,"Intrasistema","Extrasistema","Total"]
["Leche Purita Fortificada (LPF)",null,18,null,null,{"$f":"SUM(C87:E87)","v":18},{"$f":"C13+C18","v":6},{"$f":"+C50+C55","v":0},{"$f":"+G87+H87","v":6},null,null,null,{"$f":"SUM(I87:L87)","v":6},{"$f":"F87-M87","v":12}]
["Purita Cereal (PC)",null,14,null,40,{"$f":"SUM(C88:E88)","v":54},{"$f":"C14+C19","v":26},{"$f":"+C51+C56","v":0},{"$f":"+G88+H88","v":26},null,null,null,{"$f":"SUM(I88:L88)","v":26},{"$f":"F88-M88","v":28}]
["Mi Sopita (MS)",null,4,null,null,4,{"$f":"C26+C20","v":0},{"$f":"+C57+C63","v":0},{"$f":"+G89+H89","v":0},null,null,null,0,4]
["Purita Mamá (PM)",null,3.5,null,13,16.5,{"$f":"+C15+C21","v":7},{"$f":"+C52+C58","v":0},{"$f":"+G90+H90","v":7},null,null,null,{"$f":"SUM(I90:L90)","v":7},9.5]
["Fórmula de Inicio (FI)",null,4,null,null,{"$f":"SUM(C91:E91)","v":4},{"$f":"C16+C22+C27","v":2.4},{"$f":"+C53+C59+C64","v":0},{"$f":"+G91+H91","v":2.4},null,null,null,2.4,1.6]
["Fórmula Prematuros",null,null,null,null,0,{"$f":"C24","v":0},{"$f":"C61","v":0},{"$f":"+G92+H92","v":0},null,null,null,0,0]
["Fórmula Continuación",null,null,null,null,0,{"$f":"C25","v":0},{"$f":"C62","v":0},{"$f":"+G93+H93","v":0},null,null,null,0,0]
["Formula Extensamente Hidrolizada (FEH)",null,null,null,null,0,{"$f":"C29","v":0},{"$f":"C66","v":0},{"$f":"+G94+H94","v":0},null,null,null,0,{"$f":"F94-M94","v":0}]
["Formula aminoacídica (FAA)",null,null,null,null,0,{"$f":"C30","v":0},{"$f":"C67","v":0},0,null,null,null,0,0]
["Total (Kg)",null,{"$f":"SUM(C87:C95)","v":43.5},0,53,{"$f":"SUM(F87:F95)","v":96.5},41.4,0,{"$f":"SUM(I87:I95)","v":41.4},{"$f":"SUM(J87:J95)","v":0},0,0,41.4,55.1,0,{"$f":"SUM(P87:P95)","v":0}]
[]
[]
[]
[]
[]
[]
[]
[]
[]
[]
[]
[]
[]
[]
[]
[]
[]
[]
[]
[]
[]
[]
[]
[]
[]
[]
[]
[]
[]
[]
[]
[]
[]
[]
[]
[]
[]
[]
[]
[]
[]
[]
[]
[]
[]
[]
[]
[]
[]
[]
[]
[]
[{"$f":"SUM(A8:Q96)","v":1119},null,null,null,null,null,null,null,null,null,null,null,null,null,null,null,null,null,null,null,null,null,null,null,null,null,null,null,null,null,null,{"$f":"SUM(AF1:AI148)","v":0}]

{"sheet":"D16","index":2,"n_rows":205,"n_cols":31,"rows_kept":205,"cut":false,"hidden":false,"merged":[[6,0,6,13],[16,0,17,0],[25,10,27,10],[26,12,27,12],[25,4,27,4],[26,3,27,3],[26,9,27,9],[26,11,27,11],[26,5,27,5],[26,6,27,6],[26,7,27,7],[26,8,27,8],[25,11,25,12],[31,0,32,0],[25,5,25,9],[16,1,16,5],[26,2,27,2],[25,0,27,0],[25,1,27,1],[25,2,25,3],[31,1,31,5]]}
["SERVICIO DE SALUD"]
[{"$f":"CONCATENATE(\"COMUNA: \",NOMBRE!$B$2,\" - \",\"( \",NOMBRE!$C$2,NOMBRE!$D$2,NOMBRE!$E$2,NOMBRE!$F$2,NOMBRE!$G$2,\" )\")","v":"COMUNA: CALLE LARGA - ( 05302 )"}]
[{"$f":"CONCATENATE(\"ESTABLECIMIENTO/ESTRATEGIA: \",NOMBRE!$B$3,\" - \",\"( \",NOMBRE!$C$3,NOMBRE!$D$3,NOMBRE!$E$3,NOMBRE!$F$3,NOMBRE!$G$3,NOMBRE!$H$3,\" )\")","v":"ESTABLECIMIENTO/ESTRATEGIA: SAN VICENTE - ( 108405 )"}]
[{"$f":"CONCATENATE(\"MES: \",NOMBRE!$B$6,\" - \",\"( \",NOMBRE!$C$6,NOMBRE!$D$6,\" )\")","v":"MES: ENERO - ( 01 )"}]
[{"$f":"CONCATENATE(\"AÑO: \",NOMBRE!$B$7)","v":"AÑO: 2022"}]
[]
["REM-D.16.    Programa de Alimentación Complementaria del Adulto Mayor (PACAM)"]
["Sección A: PACAM - Cantidad distribuida (kg)"]
["Grupo Programático","Crema Años Dorados (CAD)","Bebida Láctea Años Dorados (BLAD)"]
["70 años y más (independiente del motivo de ingreso)",37,37,{"$f":"$AA10&\" \"&$AB10","v":" "},null,null,null,null,null,null,null,null,null,null,null,null,null,null,null,null,null,null,null,null,null,null,{"$f":"IF(B10<>C10,\"La cantidad distribuída de Crema Años Dorados es distinta a la cantidad distribuída de Bebida Láctea Años Dorados.- \",\"\")","v":""}]
["65 - 69 años con alteración de la funcionalidad",1,1,{"$f":"$AA11&\" \"&$AB11","v":" "},null,null,null,null,null,null,null,null,null,null,null,null,null,null,null,null,null,null,null,null,null,null,{"$f":"IF(B11<>C11,\"La cantidad distribuída de Crema Años Dorados es distinta a la cantidad distribuída de Bebida Láctea Años Dorados.- \",\"\")","v":""}]
["65 - 69 años en programa social (Vínculos, Familia, Calle u otro)",null,null,{"$f":"$AA12&\" \"&$AB12","v":" "},null,null,null,null,null,null,null,null,null,null,null,null,null,null,null,null,null,null,null,null,null,null,""]
["60 - 69 años con tuberculosis",null,null,{"$f":"$AA13&\" \"&$AB13","v":" "},null,null,null,null,null,null,null,null,null,null,null,null,null,null,null,null,null,null,null,null,null,null,""]
["60 - 69 años en ELEAM autorizado o similar",null,null,{"$f":"$AA14&\" \"&$AB14","v":" "},null,null,null,null,null,null,null,null,null,null,null,null,null,null,null,null,null,null,null,null,null,null,""]
["TOTAL",{"$f":"SUM(B10:B14)","v":38},{"$f":"SUM(C10:C14)","v":38}]
["Sección B: PACAM - Número de personas que retiran"]
["Grupo Programático","Crema Años Dorados-Bebida Lactea"]
[null,"Ambos Sexos","Hombres","Mujeres","Ingresos del mes","Inasistentes del mes"]
["70 años y más (independiente del motivo de ingreso",{"$f":"SUM(C19:D19)","v":37},18,19,3,100,{"$f":"$AB19","v":""},null,null,null,null,null,null,null,null,null,null,null,null,null,null,null,null,null,null,null,null,{"$f":"IF(((B10+C10)/2)<>(C19+D19),\" No olvide que el Nº de personas que retiran debe ser igual al promedio de Kilos que retiran en Seccion A.-\",\"\")","v":""},null,{"$f":"IF($C19+$D19=0,\"\",IF($B10+$C10=\"\",IF($C19+$D19=\"\",0,1),\"\"))","v":""},{"$f":"IF(C19+D19=0,\"\",IF(B10+C10=0,\"\",IF(((B10+C10)/2)<>C19+D19,1,0)))","v":0}]
["65 - 69 años con alteración de la funcionalidad",{"$f":"SUM(C20:D20)","v":1},null,1,null,null,{"$f":"$AB20","v":""},null,null,null,null,null,null,null,null,null,null,null,null,null,null,null,null,null,null,null,null,{"$f":"IF(((B11+C11)/2)<>(C20+D20),\" No olvide que el Nº de personas que retiran debe ser igual al promedio de Kilos que retiran en Seccion A.-\",\"\")","v":""},null,{"$f":"IF($C20+$D20=0,\"\",IF($B11+$C11=\"\",IF($C20+$D20=\"\",0,1),\"\"))","v":""},{"$f":"IF(C20+D20=0,\"\",IF(B11+C11=0,\"\",IF(((B11+C11)/2)<>C20+D20,1,0)))","v":0}]
["65 - 69 años en programa social (Vínculos, Familia, Calle u otro)",0,null,null,null,null,"",null,null,null,null,null,null,null,null,null,null,null,null,null,null,null,null,null,null,null,null,"",null,"",""]
["60 - 69 años con tuberculosis",0,null,null,null,null,"",null,null,null,null,null,null,null,null,null,null,null,null,null,null,null,null,null,null,null,null,"",null,"",""]
["60 - 69 años en ELEAM autorizado o similar",0,null,null,null,null,"",null,null,null,null,null,null,null,null,null,null,null,null,null,null,null,null,null,null,null,null,"",null,"",""]
["TOTAL",{"$f":"SUM(B19:B23)","v":38},18,20,3,100]
["Sección C: Existencia y movimiento de productos"]
["Alimentos","Saldo mes anterior","Ingresos",null,"Total disponible","Egresos",null,null,null,null,"Saldo mes siguiente","Necesidades"]
[null,null,"Planta","Por traspaso",null,"Distribuido a beneficiarios","Mermas (Incluye faltantes)","Otros: \n(demostraciones, \ndonaciones, etc.)","Traspaso","Total egresos",null,"Bodega del \nestableci-\nmiento","Bodegas Centrales"]
[]
["Crema Años Dorados (CAD)",20,null,60,{"$f":"SUM(B29:D29)","v":80},{"$f":"B15","v":38},null,null,null,{"$f":"SUM(F29:I29)","v":38},{"$f":"E29-J29","v":42}]
["Bebida Láctea Años Dorados (BLAD)",20,null,60,{"$f":"SUM(B30:D30)","v":80},{"$f":"C15","v":38},null,null,null,{"$f":"SUM(F30:I30)","v":38},{"$f":"E30-J30","v":42}]
["Sección D: PACAM - Número de personas que retiran, pertenecientes al PRAIS (incluidos en Sección B)"]
["Grupo Programático","Crema Años Dorados-Bebida Lactea"]
[null,"Ambos Sexos","Hombres","Mujeres","Ingresos del mes","Inasistentes del mes"]
["70 años y más (independiente del motivo de ingreso",{"$f":"SUM(C34:D34)","v":0}]
["65 - 69 años con alteración de la funcionalidad",{"$f":"SUM(C35:D35)","v":0}]
["65 - 69 años en programa social (Vínculos, Familia, Calle u otro)",0]
["60 - 69 años con tuberculosis",0]
["60 - 69 años en ELEAM autorizado o similar",0]
["TOTAL",{"$f":"SUM(B34:B38)","v":0},0,0,0,0]
[]
[]
[]
[]
[]
[]
[]
[]
[]
[]
[]
[]
[]
[]
[]
[]
[]
[]
[]
[]
[]
[]
[]
[]
[]
[]
[]
[]
[]
[]
[]
[]
[]
[]
[]
[]
[]
[]
[]
[]
[]
[]
[]
[]
[]
[]
[]
[]
[]
[]
[]
[]
[]
[]
[]
[]
[]
[]
[]
[]
[]
[]
[]
[]
[]
[]
[]
[]
[]
[]
[]
[]
[]
[]
[]
[]
[]
[]
[]
[]
[]
[]
[]
[]
[]
[]
[]
[]
[]
[]
[]
[]
[]
[]
[]
[]
[]
[]
[]
[]
[]
[]
[]
[]
[]
[]
[]
[]
[]
[]
[]
[]
[]
[]
[]
[]
[]
[]
[]
[]
[]
[]
[]
[]
[]
[]
[]
[]
[]
[]
[]
[]
[]
[]
[]
[]
[]
[]
[]
[]
[]
[]
[]
[]
[]
[]
[]
[]
[]
[]
[]
[]
[]
[]
[]
[]
[]
[]
[]
[]
[]
[]
[]
[]
[]
[{"$f":"SUM(A8:N39)","v":1066},null,null,null,null,null,null,null,null,null,null,null,null,null,null,null,null,null,null,null,null,null,null,null,null,null,null,null,null,{"$f":"SUM(AD1:AE204)","v":0}]

{"sheet":"Control","index":3,"n_rows":100,"n_cols":13,"rows_kept":100,"cut":false,"hidden":false,"merged":[]}
[null,null,"NÚMERO DE ERRORES  SEGÚN :"]
[null,null,"A.- OMISIÓN DE INFORMACIÓN"]
[null,null,"B: VALIDACIÓN DE LOS DATOS"]
[null,null,{"$f":"CONCATENATE(\"ESTABLECIMIENTO/ESTRATEGIA: \",NOMBRE!B3,\" - \",\"( \",NOMBRE!C3,NOMBRE!D3,NOMBRE!E3,NOMBRE!F3,NOMBRE!G3,NOMBRE!H3,\" )\")","v":"ESTABLECIMIENTO/ESTRATEGIA: SAN VICENTE - ( 108405 )"}]
[null,null,null,"REM","REM\nSIN DATOS","CAUSAL","OTRA CAUSAL (indicar)"]
[null,null,null,"HOJA NOMBRE",{"$f":"IF((NOMBRE!AG7)=0,\"\",\"SIN INFORMACIÓN\")","v":""},null,null,null,null,null,null,null,"Licencia médica"]
[null,null,null,"REM 15",{"$f":"IF(('D15'!A149)=0,\"SIN INFORMACIÓN\",\"\")","v":""},null,null,null,null,null,null,null,"Feriado Legal"]
[null,null,null,"REM16",{"$f":"IF(('D16'!A205)=0,\"SIN INFORMACIÓN\",\"\")","v":""},null,null,null,null,null,null,null,"No hubo profesional"]
[null,null,null,null,null,null,null,null,null,null,null,null,"No corresponde REM"]
[null,null,null,"TOTAL REM SIN INFORMACIÓN",{"$f":"COUNTIF(E6:E8,\"SIN INFORMACIÓN\")","v":0},null,null,null,null,null,null,null,"Otra causa justificada"]
[null,null,null,"TOTAL DE ERRORES REM 15",{"$f":"+'D15'!AF149","v":0}]
[null,null,null,"TOTAL DE ERRORES REM 16",{"$f":"+'D16'!AD205","v":0}]
[null,null,null,"TOTAL DE ERRORES",{"$f":"SUM(E10:E12)","v":0}]
[]
[]
[]
[]
[null,null,null,null,{"$f":"NOMBRE!AG7","v":0}]
[]
[]
[]
[]
[]
[]
[]
[]
[]
[]
[]
[]
[]
[]
[]
[]
[]
[]
[]
[]
[]
[]
[]
[]
[]
[]
[]
[]
[]
[]
[]
[]
[]
[]
[]
[]
[]
[]
[]
[]
[]
[]
[]
[]
[]
[]
[]
[]
[]
[]
[]
[]
[]
[]
[]
[]
[]
[]
[]
[]
[]
[]
[]
[]
[]
[]
[]
[]
[]
[]
[]
[]
[]
[]
[]
[]
[]
[]
[]
[]
[]
[null,null,null,null,{"$f":"NOMBRE!AG7","v":0}]

{"sheet":"MACROS","index":4,"n_rows":14,"n_cols":2,"rows_kept":14,"cut":false,"hidden":false,"merged":[[1,1,1,7],[9,1,10,7]]}
[]
[null,"Hoja de Macros y Utilidades"]
[]
[null,{"$f":"CONCATENATE(\"ESTABLECIMIENTO/ESTRATEGIA: \",NOMBRE!B3,\" - \",\"( \",NOMBRE!C3,NOMBRE!D3,NOMBRE!E3,NOMBRE!F3,NOMBRE!G3,NOMBRE!H3,NOMBRE!I3,\" )\")","v":"ESTABLECIMIENTO/ESTRATEGIA: SAN VICENTE - ( 108405 )"}]
[]
[]
[null,"COPIA Y PEGA A VALORES TODAS LAS HOJAS\nGRABELO CON OTRO NOMBRE"]
[]
[]
[null,{"$f":"IF(Control!E13>0,\"ANTES DE EJECUTAR SUS MACROS REVISE LA HOJA CONTROL, EXISTEN ERRORES\",\"\")","v":""}]
[]
[]
[]
[null,"Contraseña para copia del archivo :DEIS"]